fUSD/lending_fUSD_20240612
["ID","MTS","AMOUNT","RATE_DAILY","PERIOD"]
[329217092,1718185857116,-500.0,0.00019452,2]
[329217093,1718185857127,-500.0,0.00019452,2]
[329217094,1718185857137,-549.88,0.00019452,2]
[329217095,1718185857148,-500.0,0.00019452,2]
[329217096,1718185857160,-500.0,0.00019452,2]
[329217097,1718185857170,-500.0,0.00019452,2]
[329217098,1718185857180,-500.0,0.00019452,2]
[329217099,1718185857191,-500.0,0.00019452,2]
[329217100,1718185857201,-500.0,0.00019452,2]
[329217101,1718185857211,-512.18179953,0.00019452,2]
[329217102,1718185857222,-500.0,0.00019452,2]
[329217103,1718185857231,-500.0,0.00019452,2]
[329217104,1718185857241,-500.0,0.00019452,2]
[329217105,1718185857252,-1759.45,0.00019452,2]
[329217106,1718185857262,-500.0,0.00019452,2]
[329217107,1718185857272,-500.0,0.00019452,2]
[329217108,1718185857282,-500.0,0.00019452,2]
[329217109,1718185857293,-500.0,0.00019452,2]
[329217110,1718185857303,-500.0,0.00019452,2]
[329217111,1718185857314,-500.0,0.00019452,2]
[329217112,1718185857324,-500.0,0.00019452,2]
[329217113,1718185857334,-616.7,0.00019452,2]
[329217114,1718185857345,-500.0,0.00019452,2]
[329217115,1718185857355,-533.69572677,0.00019452,2]
[329217116,1718185857365,-500.24826678,0.00019452,2]
[329217117,1718185857376,-769.59,0.00019452,2]
[329217118,1718185857386,-518.31691849,0.00019452,2]
[329217119,1718185857397,-500.0,0.00019452,2]
[329217120,1718185857408,-500.0,0.00019452,2]
[329217121,1718185857418,-500.0,0.00019452,2]
[329217122,1718185857428,-500.0,0.00019452,2]
[329217123,1718185857438,-563.56,0.00019452,2]
[329217124,1718185857450,-497.40684683,0.00019452,2]
[329217125,1718185857460,-500.0,0.00019452,2]
[329217126,1718185857471,-712.58,0.00019452,2]
[329217127,1718185857481,-516.7506125,0.00019452,2]
[329217128,1718185857491,-657.51,0.00019452,2]
[329217129,1718185857502,-443.20883421,0.00019452,2]
[329217130,1718185857512,-1663.16,0.00019452,2]
[329217131,1718185857522,-500.0,0.00019452,2]
[329217132,1718185857539,-500.0,0.00019452,2]
[329217133,1718185857554,-4313.61,0.00019452,2]
[329217134,1718185857569,-844.37,0.00019452,2]
[329217135,1718185857582,-500.0,0.00019452,2]
[329217136,1718185857594,-532.58,0.00019452,2]
[329217137,1718185857608,-1497.28,0.00019452,2]
[329217138,1718185857622,-1218.82,0.00019452,2]
[329217139,1718185857635,-500.0,0.00019452,2]
[329217140,1718185857649,-550.43,0.00019452,2]
[329217141,1718185857664,-500.0,0.00019452,2]
[329217142,1718185857677,-500.0,0.00019452,2]
[329217143,1718185857692,-500.0,0.00019452,2]
[329217144,1718185857706,-799.49,0.00019452,2]
[329217145,1718185857720,-793.78,0.00019452,2]
[329217146,1718185857733,-500.0,0.00019452,2]
[329217147,1718185857746,-500.0,0.00019452,2]
[329217148,1718185857759,-500.0,0.00019452,2]
[329217149,1718185857771,-552.52,0.00019452,2]
[329217150,1718185857785,-4109.6,0.00019452,2]
[329217151,1718185857798,-500.0,0.00019452,2]
[329217152,1718185857811,-1055.47,0.00019452,2]
[329217153,1718185857824,-897.13,0.00019452,2]
[329217154,1718185857835,-543.28,0.00019452,2]
[329217155,1718185857846,-1296.61,0.00019452,2]
[329217156,1718185857860,-500.0,0.00019452,2]
[329217157,1718185857872,-500.0,0.00019452,2]
[329217158,1718185857885,-809.93,0.00019452,2]
[329217159,1718185857899,-500.0,0.00019452,2]
[329217160,1718185857911,-6405.02,0.00019452,2]
[329217161,1718185857924,-768.11,0.00019452,2]
[329217162,1718185857937,-2036.48,0.00019452,2]
[329217163,1718185857951,-500.0,0.00019452,2]
[329217164,1718185857965,-2920.36,0.00019452,2]
[329217165,1718185857979,-500.0,0.00019452,2]
[329217166,1718185857992,-500.0,0.00019452,2]
[329217167,1718185858003,-500.0,0.00019452,2]
[329217168,1718185858015,-500.0,0.00019452,2]
[329217169,1718185858032,-2762.9,0.00019452,2]
[329217170,1718185858046,-500.0,0.00019452,2]
[329217171,1718185858062,-500.0,0.00019452,2]
[329217172,1718185858073,-708.79,0.00019452,2]
[329217173,1718185858088,-500.0,0.00019452,2]
[329217174,1718185858106,-500.0,0.00019452,2]
[329217175,1718185858120,-500.0,0.00019452,2]
[329217176,1718185858133,-500.0,0.00019452,2]
[329217177,1718185858146,-1021.06,0.00019452,2]
[329217178,1718185858157,-500.0,0.00019452,2]
[329217179,1718185858168,-500.0,0.00019452,2]
[329217180,1718185858180,-500.0,0.00019452,2]
[329217181,1718185858192,-500.0,0.00019452,2]
[329217182,1718185858204,-500.0,0.00019452,2]
[329217183,1718185858216,-500.0,0.00019452,2]
[329217184,1718185858229,-1191.19,0.00019452,2]
[329217185,1718185858241,-500.0,0.00019452,2]
[329217186,1718185858253,-500.0,0.00019452,2]
[329217187,1718185858266,-500.0,0.00019452,2]
[329217188,1718185858278,-500.0,0.00019452,2]
[329217189,1718185858291,-500.0,0.00019452,2]
[329217190,1718185858303,-500.0,0.00019452,2]
[329217191,1718185858316,-500.0,0.00019452,2]
[329217192,1718185858328,-2756.75,0.00019452,2]
[329217193,1718185858340,-761.22,0.00019452,2]
[329217194,1718185858353,-743.07,0.00019452,2]
[329217195,1718185858365,-683.7,0.00019452,2]
[329217196,1718185858378,-515.05,0.00019452,2]
[329217197,1718185858391,-1876.75,0.00019452,2]
[329217198,1718185858404,-1604.18,0.00019452,2]
[329217199,1718185858416,-790.24,0.00019452,2]
[329217200,1718185858428,-225.28181845,0.00019452,2]
[329217201,1718185858441,-500.0,0.00019452,2]
[329217202,1718185858453,-998.7,0.00019452,2]
[329217203,1718185858465,-500.0,0.00019452,2]
[329217204,1718185858477,-500.0,0.00019452,2]
[329217205,1718185858489,-500.0,0.00019452,2]
[329217206,1718185858502,-500.0,0.00019452,2]
[329217207,1718185858513,-500.0,0.00019452,2]
[329217208,1718185858525,-500.0,0.00019452,2]
[329217209,1718185858536,-975.94,0.00019452,2]
[329217210,1718185858548,-500.0,0.00019452,2]
[329217211,1718185858559,-500.0,0.00019452,2]
[329217212,1718185858571,-798.24,0.00019452,2]
[329217213,1718185858584,-500.0,0.00019452,2]
[329217214,1718185858598,-611.52,0.00019452,2]
[329217215,1718185858610,-243.26758641,0.00019452,2]
[329217216,1718185858622,-833.49,0.00019452,2]
[329217217,1718185858635,-875.83,0.00019452,2]
[329217218,1718185858647,-500.0,0.00019452,2]
[329217219,1718185858660,-500.0,0.00019452,2]
[329217220,1718185858672,-1061.9,0.00019452,2]
[329217221,1718185858684,-500.0,0.00019452,2]
[329217222,1718185858696,-519.22071955,0.00019452,2]
[329217223,1718185858708,-500.0,0.00019452,2]
[329217224,1718185858727,-520.11544692,0.00019452,2]
[329217225,1718185858740,-638.1,0.00019452,2]
[329217226,1718185858753,-609.2,0.00019452,2]
[329217227,1718185858765,-190.30287114,0.00019452,2]
[329217228,1718185858778,-500.0,0.00019452,2]
[329217229,1718185858790,-536.385014,0.00019452,2]
[329217230,1718185858802,-500.0,0.00019452,2]
[329217231,1718185858818,-500.0,0.00019452,2]
[329217232,1718185858832,-500.0,0.00019452,2]
[329217233,1718185858845,-500.0,0.00019452,2]
[329217234,1718185858857,-617.77,0.00019452,2]
[329217235,1718185858873,-500.0,0.00019452,2]
[329217236,1718185858886,-566.19,0.00019452,2]
[329217237,1718185858900,-500.0,0.00019452,2]
[329217238,1718185858913,-500.0,0.00019452,2]
[329217239,1718185858926,-587.52,0.00019452,2]
[329217240,1718185858938,-2086.81,0.00019452,2]
[329217241,1718185858953,-506.66667071,0.00019452,2]
[329217242,1718185858966,-500.0,0.00019452,2]
[329217243,1718185858983,-411.29620492,0.00019452,2]
[329217244,1718185858996,-2541.52,0.00019452,2]
[329217245,1718185859010,-840.54,0.00019452,2]
[329217246,1718185859024,-500.0,0.00019452,2]
[329217247,1718185859037,-500.0,0.00019452,2]
[329217248,1718185859051,-861.93,0.00019452,2]
[329217249,1718185859064,-226.6,0.00019452,2]
[329217250,1718185859077,-500.0,0.00019452,2]
[329217251,1718185859098,-500.0,0.00019452,2]
[329217252,1718185859112,-653.36,0.00019452,2]
[329217253,1718185859126,-500.0,0.00019452,2]
[329217254,1718185859138,-1513.9,0.00019452,2]
[329217255,1718185859152,-1430.79,0.00019452,2]
[329217256,1718185859165,-500.0,0.00019452,2]
[329217257,1718185859177,-1116.87,0.00019452,2]
[329217258,1718185859189,-500.0,0.00019452,2]
[329217259,1718185859202,-1680.63,0.00019452,2]
[329217260,1718185859214,-2401.2,0.00019452,2]
[329217261,1718185859227,-500.0,0.00019452,2]
[329217262,1718185859241,-524.02809477,0.00019452,2]
[329217263,1718185859256,-500.0,0.00019452,2]
[329217264,1718185859269,-500.0,0.00019452,2]
[329217265,1718185859282,-562.19,0.00019452,2]
[329217266,1718185859296,-598.58213918,0.00019452,2]
[329217267,1718185859310,-500.0,0.00019452,2]
[329217268,1718185859322,-1223.41,0.00019452,2]
[329217269,1718185859335,-1057.64,0.00019452,2]
[329217270,1718185859348,-807.87,0.00019452,2]
[329217271,1718185859362,-982.45,0.00019452,2]
[329217272,1718185859375,-500.0,0.00019452,2]
[329217273,1718185859388,-524.59316301,0.00019452,2]
[329217274,1718185859402,-500.0,0.00019452,2]
[329217275,1718185859414,-500.0,0.00019452,2]
[329217276,1718185859426,-714.41,0.00019452,2]
[329217277,1718185859438,-500.0,0.00019452,2]
[329217278,1718185859451,-1266.87,0.00019452,2]
[329217279,1718185859465,-500.0,0.00019452,2]
[329217280,1718185859478,-1245.17,0.00019452,2]
[329217281,1718185859491,-500.0,0.00019452,2]
[329217282,1718185859503,-624.57,0.00019452,2]
[329217283,1718185859516,-500.0,0.00019452,2]
[329217284,1718185859529,-1411.92,0.00019452,2]
[329217285,1718185859541,-500.0,0.00019452,2]
[329217286,1718185859556,-1034.01,0.00019452,2]
[329217287,1718185859571,-500.0,0.00019452,2]
[329217288,1718185859583,-507.19,0.00019452,2]
[329217289,1718185859596,-769.32,0.00019452,2]
[329217290,1718185859608,-632.86,0.00019452,2]
[329217291,1718185859621,-1980.14,0.00019452,2]
[329217292,1718185859633,-855.8,0.00019452,2]
[329217293,1718185859646,-2845.79,0.00019452,2]
[329217294,1718185859658,-500.0,0.00019452,2]
[329217295,1718185859671,-658.23,0.00019452,2]
[329217296,1718185859683,-500.0,0.00019452,2]
[329217297,1718185859695,-500.0,0.00019452,2]
[329217298,1718185859707,-500.0,0.00019452,2]
[329217299,1718185859720,-500.0,0.00019452,2]
[329217300,1718185859732,-856.59,0.00019452,2]
[329217301,1718185859744,-906.07,0.00019452,2]
[329217302,1718185859756,-771.76,0.00019452,2]
[329217303,1718185859769,-736.59,0.00019452,2]
[329217304,1718185859781,-1448.82,0.00019452,2]
[329217305,1718185859793,-654.87,0.00019452,2]
[329217306,1718185859806,-500.0,0.00019452,2]
[329217307,1718185859818,-1124.45,0.00019452,2]
[329217308,1718185859831,-543.6,0.00019452,2]
[329217309,1718185859843,-500.0,0.00019452,2]
[329217310,1718185859857,-221.5493245,0.00019452,2]
[329217311,1718185859870,-3297.81,0.00019452,2]
[329217312,1718185859882,-513.64,0.00019452,2]
[329217313,1718185859896,-2891.44,0.00019452,2]
[329217314,1718185859907,-500.0,0.00019452,2]
[329217315,1718185859919,-769.71,0.00019452,2]
[329217316,1718185859934,-733.82,0.00019452,2]
[329217317,1718185859947,-2443.76,0.00019452,2]
[329217318,1718185859959,-500.0,0.00019452,2]
[329217319,1718185859971,-500.0,0.00019452,2]
[329217320,1718185859988,-2001.79,0.00019452,2]
[329217321,1718185860000,-2858.77,0.00019452,2]
[329217322,1718185860013,-500.0,0.00019452,2]
[329217323,1718185860028,-500.0,0.00019452,2]
[329217324,1718185860042,-863.57,0.00019452,2]
[329217325,1718185860055,-5348.23,0.00019452,2]
[329217326,1718185860068,-500.0,0.00019452,2]
[329217327,1718185860081,-500.0,0.00019452,2]
[329217328,1718185860118,-500.0,0.00019452,2]
[329217329,1718185860131,-500.0,0.00019452,2]
[329217330,1718185860147,-1934.79,0.00019452,2]
[329217331,1718185860159,-885.96,0.00019452,2]
[329217332,1718185860172,-500.0,0.00019452,2]
[329217333,1718185860184,-500.0,0.00019452,2]
[329217334,1718185860196,-597.64,0.00019452,2]
[329217335,1718185860209,-500.0,0.00019452,2]
[329217336,1718185860223,-500.0,0.00019452,2]
[329217337,1718185860235,-1159.83,0.00019452,2]
[329217338,1718185860247,-500.0,0.00019452,2]
[329217339,1718185860261,-500.0,0.00019452,2]
[329217340,1718185860275,-500.0,0.00019452,2]
[329217341,1718185860290,-500.0,0.00019452,2]
[329217342,1718185860303,-994.91,0.00019452,2]
[329217343,1718185860316,-670.09,0.00019452,2]
[329217344,1718185860331,-497.40953962,0.00019485,3]
[329217345,1718185860345,-500.0,0.00019499,2]
[329217346,1718185860359,-500.0,0.00019499,2]
[329217347,1718185860373,-500.0,0.00019499,2]
[329217348,1718185860386,-441.25,0.00019499,2]
[329217349,1718185860400,-413910.01336672,0.000195,2]
[329217350,1718185861970,-500.0,0.00019178,2]
[329217351,1718185861989,-500.0,0.00019315,2]
[329217352,1718185862001,-500.0,0.00019452,2]
[329217353,1718185862013,-940387.95947212,0.000195,2]
[329217354,1718185862029,-500.0,0.00019589,2]
[329217355,1718185862042,-500.0,0.00019589,2]
[329217356,1718185862055,-500.0,0.00019589,2]
[329217357,1718185862068,-500.0,0.00019589,2]
[329217358,1718185862084,-500.0,0.00019589,2]
[329217359,1718185862119,-529.04,0.00019589,2]
[329217360,1718185862132,-545.61803188,0.00019589,2]
[329217361,1718185862152,-500.0,0.00019589,2]
[329217362,1718185862163,-500.0,0.00019589,2]
[329217363,1718185862174,-500.0,0.00019589,2]
[329217364,1718185862186,-802.03,0.00019589,2]
[329217365,1718185862197,-500.0,0.00019589,2]
[329217366,1718185862210,-500.0,0.00019589,2]
[329217367,1718185862221,-500.0,0.00019589,2]
[329217368,1718185862231,-500.0,0.00019589,2]
[329217369,1718185862241,-500.0,0.00019589,2]
[329217370,1718185862252,-500.0,0.00019589,2]
[329217371,1718185862262,-421.74519238,0.00019589,2]
[329217372,1718185862276,-500.0,0.00019589,2]
[329217373,1718185862300,-500.0,0.00019589,2]
[329217374,1718185862311,-285.43872545,0.00019589,2]
[329217375,1718185862324,-500.0,0.00019589,2]
[329217376,1718185862336,-500.0,0.00019589,2]
[329217377,1718185862348,-500.0,0.00019589,2]
[329217378,1718185862360,-500.0,0.00019589,2]
[329217379,1718185862372,-526.55648326,0.00019589,2]
[329217380,1718185862388,-865.21,0.00019589,2]
[329217381,1718185862405,-500.0,0.00019589,2]
[329217382,1718185862417,-500.0,0.00019589,2]
[329217383,1718185862429,-500.0,0.00019589,2]
[329217384,1718185862440,-500.0,0.00019589,2]
[329217385,1718185862451,-500.0,0.00019589,2]
[329217386,1718185862460,-616.47,0.00019589,2]
[329217387,1718185862471,-500.0,0.00019589,2]
[329217388,1718185862482,-500.0,0.00019589,2]
[329217389,1718185862492,-500.0,0.00019589,2]
[329217390,1718185862502,-500.0,0.00019589,2]
[329217391,1718185862512,-500.0,0.00019589,2]
[329217392,1718185862522,-500.0,0.00019589,2]
[329217393,1718185862533,-500.0,0.00019589,2]
[329217394,1718185862544,-500.0,0.00019589,2]
[329217395,1718185862556,-827.08,0.00019589,2]
[329217396,1718185862567,-641.91,0.00019589,2]
[329217397,1718185862577,-500.0,0.00019589,2]
[329217398,1718185862587,-500.0,0.00019589,2]
[329217399,1718185862598,-500.0,0.00019589,2]
[329217400,1718185862608,-500.0,0.00019589,2]
[329217401,1718185862619,-500.0,0.00019589,2]
[329217402,1718185862629,-500.0,0.00019589,2]
[329217403,1718185862638,-500.0,0.00019589,2]
[329217404,1718185862652,-500.0,0.00019589,2]
[329217405,1718185862663,-831.92,0.00019589,2]
[329217406,1718185862674,-500.0,0.00019589,2]
[329217407,1718185862683,-500.0,0.00019589,2]
[329217408,1718185862695,-500.0,0.00019589,2]
[329217409,1718185862706,-500.0,0.00019589,2]
[329217410,1718185862717,-500.0,0.00019589,2]
[329217411,1718185862727,-500.0,0.00019589,2]
[329217412,1718185862737,-535.32040516,0.00019589,2]
[329217413,1718185862747,-500.0,0.00019589,2]
[329217414,1718185862758,-500.0,0.00019589,2]
[329217415,1718185862767,-500.0,0.00019589,2]
[329217416,1718185862777,-500.0,0.00019589,2]
[329217417,1718185862788,-500.0,0.00019589,2]
[329217418,1718185862798,-522.99010087,0.00019589,2]
[329217419,1718185862808,-596.38,0.00019589,2]
[329217420,1718185862818,-500.0,0.00019589,2]
[329217421,1718185862828,-500.0,0.00019589,2]
[329217422,1718185862838,-500.0,0.00019589,2]
[329217423,1718185862847,-515.75252568,0.00019589,2]
[329217424,1718185862857,-500.0,0.00019589,2]
[329217425,1718185862867,-500.0,0.00019589,2]
[329217426,1718185862876,-500.0,0.00019589,2]
[329217427,1718185862886,-500.0,0.00019589,2]
[329217428,1718185862899,-150.0,0.00019589,2]
[329217429,1718185862908,-636.69,0.00019589,2]
[329217430,1718185862918,-500.0,0.00019589,2]
[329217431,1718185862928,-500.0,0.00019589,2]
[329217432,1718185862938,-500.0,0.00019589,2]
[329217433,1718185862947,-500.0,0.00019589,2]
[329217435,1718185862957,-550.81,0.00019589,2]
[329217436,1718185862967,-544.83,0.00019589,2]
[329217437,1718185862980,-500.0,0.00019589,2]
[329217438,1718185862990,-500.0,0.00019589,2]
[329217439,1718185862999,-500.0,0.00019589,2]
[329217440,1718185863009,-500.0,0.00019589,2]
[329217441,1718185863019,-510.83897527,0.00019589,2]
[329217442,1718185863029,-500.0,0.00019589,2]
[329217443,1718185863038,-500.0,0.00019589,2]
[329217444,1718185863048,-500.0,0.00019589,2]
[329217445,1718185863058,-543.70719782,0.00019589,2]
[329217446,1718185863068,-642.59,0.00019589,2]
[329217447,1718185863079,-500.0,0.00019589,2]
[329217448,1718185863092,-528.18,0.00019589,2]
[329217449,1718185863113,-500.0,0.00019589,2]
[329217450,1718185863123,-500.0,0.00019589,2]
[329217451,1718185863135,-500.0,0.00019589,2]
[329217452,1718185863147,-500.0,0.00019589,2]
[329217453,1718185863160,-500.0,0.00019589,2]
[329217454,1718185863170,-500.0,0.00019589,2]
[329217455,1718185863183,-500.0,0.00019589,2]
[329217456,1718185863192,-500.0,0.00019589,2]
[329217457,1718185863202,-299.84278415,0.00019589,2]
[329217458,1718185863212,-500.0,0.00019589,2]
[329217459,1718185863223,-500.0,0.00019589,2]
[329217460,1718185863234,-500.0,0.00019589,2]
[329217461,1718185863245,-500.0,0.00019589,2]
[329217462,1718185863255,-500.0,0.00019589,2]
[329217463,1718185863265,-500.0,0.00019589,2]
[329217464,1718185863277,-500.0,0.00019589,2]
[329217465,1718185863287,-500.0,0.00019589,2]
[329217466,1718185863298,-500.0,0.00019589,2]
[329217467,1718185863308,-500.0,0.00019589,2]
[329217468,1718185863319,-500.0,0.00019589,2]
[329217469,1718185863329,-500.0,0.00019589,2]
[329217470,1718185863339,-155.60251937,0.00019589,2]
[329217471,1718185863350,-500.0,0.00019589,2]
[329217472,1718185863361,-500.0,0.00019589,2]
[329217473,1718185863372,-500.0,0.00019589,2]
[329217474,1718185863383,-500.0,0.00019589,2]
[329217475,1718185863394,-500.0,0.00019589,2]
[329217476,1718185863404,-500.0,0.00019589,2]
[329217477,1718185863415,-500.0,0.00019589,2]
[329217478,1718185863425,-500.0,0.00019589,2]
[329217479,1718185863436,-500.0,0.00019589,2]
[329217480,1718185863446,-500.0,0.00019589,2]
[329217481,1718185863458,-500.0,0.00019589,2]
[329217482,1718185863470,-500.0,0.00019589,2]
[329217483,1718185863481,-500.0,0.00019589,2]
[329217484,1718185863492,-500.0,0.00019589,2]
[329217485,1718185863502,-500.0,0.00019589,2]
[329217486,1718185863513,-500.0,0.00019589,2]
[329217487,1718185863523,-500.0,0.00019589,2]
[329217488,1718185863534,-500.0,0.00019589,2]
[329217489,1718185863544,-459.70768743,0.00019589,2]
[329217490,1718185863554,-549.88,0.00019589,2]
[329217491,1718185863564,-208.15009303,0.00019589,2]
[329217492,1718185863575,-500.0,0.00019589,2]
[329217493,1718185863587,-500.0,0.00019589,2]
[329217494,1718185863597,-500.0,0.00019589,2]
[329217495,1718185863607,-500.0,0.00019589,2]
[329217496,1718185863618,-500.0,0.00019589,2]
[329217497,1718185863630,-500.0,0.00019589,2]
[329217498,1718185863642,-500.0,0.00019589,2]
[329217499,1718185863654,-500.0,0.00019589,2]
[329217500,1718185863664,-500.0,0.00019589,2]
[329217501,1718185863675,-406.73124421,0.00019589,2]
[329217502,1718185863685,-500.0,0.00019589,2]
[329217503,1718185863696,-500.0,0.00019589,2]
[329217504,1718185863708,-500.0,0.00019589,2]
[329217505,1718185863719,-500.0,0.00019589,2]
[329217506,1718185863729,-500.0,0.00019589,2]
[329217507,1718185863740,-616.7,0.00019589,2]
[329217508,1718185863752,-500.0,0.00019589,2]
[329217509,1718185863763,-769.59,0.00019589,2]
[329217510,1718185863774,-500.0,0.00019589,2]
[329217511,1718185863784,-500.0,0.00019589,2]
[329217512,1718185863795,-500.0,0.00019589,2]
[329217513,1718185863806,-563.56,0.00019589,2]
[329217514,1718185863818,-500.0,0.00019589,2]
[329217515,1718185863829,-657.51,0.00019589,2]
[329217516,1718185863841,-1663.16,0.00019589,2]
[329217517,1718185863852,-500.0,0.00019589,2]
[329217518,1718185863863,-500.0,0.00019589,2]
[329217519,1718185863875,-4313.61,0.00019589,2]
[329217520,1718185863887,-844.37,0.00019589,2]
[329217521,1718185863899,-500.0,0.00019589,2]
[329217522,1718185863910,-1497.28,0.00019589,2]
[329217523,1718185863920,-532.58,0.00019589,2]
[329217524,1718185863931,-576.32444123,0.00019589,2]
[329217525,1718185863941,-550.43,0.00019589,2]
[329217526,1718185863952,-500.0,0.00019589,2]
[329217527,1718185863963,-500.0,0.00019589,2]
[329217528,1718185863975,-500.0,0.00019589,2]
[329217529,1718185863991,-793.78,0.00019589,2]
[329217530,1718185864002,-213.05160937,0.00019589,2]
[329217531,1718185864013,-500.0,0.00019589,2]
[329217532,1718185864026,-500.0,0.00019589,2]
[329217533,1718185864037,-552.52,0.00019589,2]
[329217534,1718185864048,-4109.6,0.00019589,2]
[329217535,1718185864060,-500.0,0.00019589,2]
[329217536,1718185864071,-1055.47,0.00019589,2]
[329217537,1718185864081,-897.13,0.00019589,2]
[329217538,1718185864107,-543.28,0.00019589,2]
[329217539,1718185864121,-1296.61,0.00019589,2]
[329217540,1718185864133,-500.0,0.00019589,2]
[329217541,1718185864145,-500.0,0.00019589,2]
[329217542,1718185864347,-809.93,0.00019589,2]
[329217543,1718185864362,-559.08635197,0.00019589,2]
[329217544,1718185864373,-6405.02,0.00019589,2]
[329217545,1718185864383,-768.11,0.00019589,2]
[329217546,1718185864395,-2036.48,0.00019589,2]
[329217547,1718185864405,-500.0,0.00019589,2]
[329217548,1718185864416,-2920.36,0.00019589,2]
[329217549,1718185864426,-500.0,0.00019589,2]
[329217550,1718185864436,-602.76193034,0.00019589,2]
[329217551,1718185864446,-500.0,0.00019589,2]
[329217552,1718185864457,-500.0,0.00019589,2]
[329217553,1718185864469,-2762.9,0.00019589,2]
[329217554,1718185864480,-500.0,0.00019589,2]
[329217555,1718185864491,-500.0,0.00019589,2]
[329217556,1718185864502,-708.79,0.00019589,2]
[329217557,1718185864512,-500.0,0.00019589,2]
[329217558,1718185864523,-220.1196758,0.00019589,2]
[329217559,1718185864533,-500.0,0.00019589,2]
[329217560,1718185864544,-500.0,0.00019589,2]
[329217561,1718185864555,-1021.06,0.00019589,2]
[329217562,1718185864565,-500.0,0.00019589,2]
[329217563,1718185864576,-500.0,0.00019589,2]
[329217564,1718185864587,-500.0,0.00019589,2]
[329217565,1718185864597,-500.0,0.00019589,2]
[329217566,1718185864608,-500.0,0.00019589,2]
[329217567,1718185864619,-500.0,0.00019589,2]
[329217568,1718185864629,-1191.19,0.00019589,2]
[329217569,1718185864639,-500.0,0.00019589,2]
[329217570,1718185864651,-500.0,0.00019589,2]
[329217571,1718185864661,-500.0,0.00019589,2]
[329217572,1718185864672,-500.0,0.00019589,2]
[329217573,1718185864683,-500.0,0.00019589,2]
[329217574,1718185864694,-500.0,0.00019589,2]
[329217575,1718185864705,-500.0,0.00019589,2]
[329217576,1718185864717,-2756.75,0.00019589,2]
[329217577,1718185864728,-761.22,0.00019589,2]
[329217578,1718185864739,-743.07,0.00019589,2]
[329217579,1718185864751,-683.7,0.00019589,2]
[329217580,1718185864762,-515.05,0.00019589,2]
[329217581,1718185864773,-1876.75,0.00019589,2]
[329217582,1718185864784,-1604.18,0.00019589,2]
[329217583,1718185864794,-790.24,0.00019589,2]
[329217584,1718185864804,-500.0,0.00019589,2]
[329217585,1718185864815,-998.7,0.00019589,2]
[329217586,1718185864826,-500.0,0.00019589,2]
[329217587,1718185864836,-500.0,0.00019589,2]
[329217588,1718185864847,-500.0,0.00019589,2]
[329217589,1718185864858,-500.0,0.00019589,2]
[329217590,1718185864871,-500.0,0.00019589,2]
[329217591,1718185864882,-500.0,0.00019589,2]
[329217592,1718185864892,-975.94,0.00019589,2]